bitfinex-derivatives/quotes_ETHF0:USTF0_20251119
["timestamp","ask_amount","ask_price","bid_price","bid_amount"]
[1763549826372,1.65128819,3091.8,3091.7,0.76486029]
[1763549826576,1.65128819,3091.8,3091.7,0.24045029]
[1763549826979,1.65128819,3091.8,3091.7,0.00485029]
[1763549827180,4.85908819,3091.8,3091.7,0.00485029]
[1763549827381,5.60710214,3091.8,3091.7,0.00485029]
[1763549827778,5.60710214,3091.8,3091.0,1.89674677]
[1763549827779,0.52451,3091.1,3091.0,0.00330973]
[1763549827978,0.74801395,3091.1,3091.0,0.14160973]
[1763549828191,0.5245,3091.3,3091.2,0.2356]
[1763549829186,0.5245,3091.3,3091.2,0.7601]
[1763549829387,0.5245,3091.3,3091.2,0.2356]
[1763549829580,0.52451,3091.2,3091.1,0.2356]
[1763549831884,0.52451,3091.1,3091.0,0.66613973]
[1763549832078,0.52451,3091.1,3091.0,0.90173973]
[1763549832591,0.52449,3091.3,3091.1,0.52451]
[1763549832790,0.52449,3091.3,3091.0,0.14160973]
[1763549832982,0.52449,3091.3,3091.2,0.2356]
[1763549833484,3.2078,3091.5,3091.4,0.2356]
[1763549833785,0.52444,3091.6,3091.5,0.1383]
[1763549834186,0.52444,3091.6,3091.5,0.3739]
[1763549834585,0.52441,3091.7,3091.6,0.2356]
[1763549834985,0.5244,3091.8,3091.7,0.2356]
[1763549835787,0.5244,3091.8,3091.7,0.76]
[1763549837794,3.73218,3091.9,3091.8,0.76]
[1763549837994,0.52435,3092.1,3092.0,0.89826]
[1763549838191,0.52432,3092.3,3092.2,0.2356]
[1763549840001,0.52432,3092.3,3092.2,0.75993]
[1763549840985,0.52432,3092.3,3092.2,0.2356]
[1763549841187,0.52432,3092.3,3092.2,0.75993]
[1763549842782,0.00485029,3092.4,3092.0,3.5817]
[1763549842783,0.52434,3092.1,3092.0,3.5817]
[1763549843788,0.52434,3092.1,3092.0,4.10606]
[1763549844699,1.13173848,3092.4,3092.3,0.2356]
[1763549844700,0.00485029,3092.4,3092.3,0.2356]
[1763549845495,0.00485029,3092.4,3092.3,0.75991]
[1763549859903,0.52423,3092.8,3092.7,0.74874]
[1763549862508,0.52423,3092.8,3092.7,0.2245]
[1763549862907,0.52426,3092.6,3092.5,0.3702]
[1763549863311,0.52426,3092.6,3092.5,0.1457]
[1763549864010,1.27411655,3092.6,3092.5,0.1457]
[1763549865207,1.27411655,3092.6,3092.5,0.3702]
[1763549866415,1.27411655,3092.6,3092.5,0.1457]
[1763549870713,0.52434,3092.1,3092.0,3.3461]
[1763549871010,0.52434,3092.1,3092.0,3.87046]
[1763549871216,0.52434,3092.1,3092.0,0.1383]
[1763549871418,1.27610727,3092.1,3092.0,0.1383]
[1763549872019,0.52443,3091.7,3091.6,0.52443]
[1763549872319,0.52443,3091.7,3091.6,0.74893]
[1763549872819,0.5244,3091.8,3091.7,0.74888]
[1763549874418,0.52443,3091.6,3091.5,3.3461]
[1763549874922,0.52443,3091.6,3091.5,4.09505]
[1763549879627,3.73216,3092.0,3091.9,0.2245]
[1763549879830,4.4822478,3092.0,3091.9,0.2245]
[1763549880121,4.4822478,3092.0,3091.9,0.74888]
[1763549880326,3.73216,3092.0,3091.9,0.74888]
[1763549880629,0.52436,3092.0,3091.9,0.74888]
[1763549882834,0.52435,3092.2,3092.1,0.76562]
[1763549883525,0.52435,3092.2,3092.1,0.2413]
[1763549883721,0.52435,3092.2,3092.1,0.76564]
[1763549888025,0.52435,3092.2,3092.0,0.1369]
[1763549888026,3.2078,3092.4,3092.3,0.76561]
[1763549888438,0.52429,3092.4,3092.3,0.52431]
[1763549888640,0.52429,3092.4,3092.3,0.76561]
[1763549889441,3.2078,3092.8,3092.7,0.2413]
[1763549889834,0.52434,3092.1,3092.0,0.1369]
[1763549890137,4.48379279,3092.1,3092.0,0.1369]
[1763549891045,0.52443,3091.7,3091.6,0.2413]
[1763549891341,3.73223,3091.7,3091.6,0.2413]
[1763549891647,4.48386279,3091.7,3091.6,0.76572]
[1763549897450,1.27606279,3091.7,3091.6,0.76572]
[1763549897645,4.48386279,3091.7,3091.6,0.76572]
[1763549898454,4.48386279,3091.7,3091.6,0.52442]
[1763549898748,4.48386279,3091.7,3091.6,0.76572]
[1763549899949,1.27606279,3091.7,3091.6,0.76572]
[1763549900947,0.75165279,3091.7,3091.6,0.76572]
[1763549901249,1.27606279,3091.7,3091.6,0.76572]
[1763549902850,0.52441,3091.7,3091.6,0.76572]
[1763549903551,3.73214,3092.1,3092.0,0.3838]
[1763549903742,4.4845515,3092.1,3092.0,0.3838]
[1763549904742,4.4845515,3092.1,3092.0,0.90816]
[1763549906846,4.48465185,3092.1,3092.0,0.90816]
[1763549910458,0.75251185,3092.1,3092.0,4.11596]
[1763549910652,3.2078,3092.5,3092.4,0.2363]
[1763549910957,4.48457656,3092.5,3092.4,0.2363]
[1763549911648,0.52425,3092.4,3092.3,0.52425]
[1763549911848,1.27679656,3092.4,3092.3,0.52425]
[1763549912048,1.27679656,3092.4,3092.3,0.75935]
[1763549912955,3.2078,3092.5,3092.4,0.75935]
[1763549913159,3.21026166,3092.9,3092.8,0.75928]
[1763549914857,3.73443166,3092.9,3092.8,0.75928]
[1763549915055,3.21026166,3092.9,3092.8,0.75928]
[1763549915469,3.73443166,3092.9,3092.8,0.75928]
[1763549915652,3.21026166,3092.9,3092.8,0.75928]
[1763549916761,3.73443166,3092.9,3092.8,0.75928]
[1763549918262,3.21026166,3092.9,3092.8,0.75928]
[1763549919964,0.00246166,3092.9,3092.8,0.75928]
[1763549920962,0.00246166,3092.9,3092.8,0.2351]
[1763549921156,0.52426,3092.6,3092.5,0.66511029]
[1763549921662,0.52426,3092.6,3092.5,0.90021029]
[1763549921963,0.52426,3092.6,3092.5,0.14085029]
[1763549923152,3.21026166,3092.9,3092.5,0.37595029]
[1763549923355,3.73447166,3092.9,3092.8,0.2351]
[1763549923662,0.52426,3092.6,3092.5,0.66513029]
[1763549924265,0.52426,3092.6,3092.5,0.90023029]
[1763549924564,0.52426,3092.6,3092.5,0.66513029]
[1763549924765,0.52426,3092.6,3092.5,0.90023029]
[1763549927556,0.52426,3092.6,3092.5,0.66513029]
[1763549927863,0.52426,3092.6,3092.5,0.90023029]
[1763549929166,0.52426,3092.6,3092.5,0.66513029]
[1763549929367,0.52426,3092.6,3092.5,0.90023029]
[1763549930862,0.52425,3092.7,3092.6,0.75933]
[1763549931563,0.52425,3092.7,3092.6,0.52423]
[1763549931769,0.52425,3092.7,3092.6,0.75933]
[1763549933172,1.27641128,3092.7,3092.6,0.75933]
[1763549933970,1.27640513,3092.7,3092.6,0.75933]
[1763549936676,0.52426,3092.6,3092.5,0.14085029]
[1763549936876,1.27683565,3092.6,3092.5,0.14085029]
[1763549937376,1.27683565,3092.6,3092.5,0.37595029]
[1763549937876,1.27683565,3092.6,3092.5,0.90023029]
[1763549941082,1.27683565,3092.6,3092.5,0.37595029]
[1763549941381,1.27683565,3092.6,3092.5,0.90023029]
[1763549951177,0.52433,3092.2,3092.1,1.74583704]
[1763549951380,0.75257565,3092.6,3092.0,0.1425]
[1763549951381,0.52435,3092.1,3092.0,0.1425]
[1763549951576,0.75362714,3092.2,3092.1,0.52435]
[1763549951772,0.5243,3092.4,3092.3,0.2391]
[1763549951985,1.2780306,3092.4,3092.3,0.2391]
[1763549952882,1.2780306,3092.4,3092.3,0.76341]
[1763549958189,0.52433,3092.2,3092.1,0.52433]
[1763549958489,1.2780606,3092.2,3092.1,0.52433]
[1763549958885,1.2780606,3092.2,3092.1,0.76343]
[1763549964190,0.7537306,3092.2,3092.1,0.76343]
[1763549965191,0.52428,3092.5,3092.4,0.76339]
[1763549965592,1.27777039,3092.5,3092.4,0.76339]
[1763549967089,0.75349039,3092.5,3092.4,0.76339]
[1763549967288,3.73205,3092.7,3092.6,0.2393]
[1763549967595,4.4855736,3092.7,3092.6,0.2393]
[1763549968788,4.4855736,3092.7,3092.6,0.76356]
[1763549972704,3.9613236,3092.7,3092.6,0.76356]
[1763549973902,4.4855636,3092.7,3092.6,0.76356]
[1763549975003,3.9613236,3092.7,3092.6,0.76356]
[1763549976305,4.4855636,3092.7,3092.6,0.76356]
[1763549979409,3.9613236,3092.7,3092.6,0.76356]
[1763549982308,3.2078,3092.7,3092.6,0.76356]
[1763549986103,0.00246166,3092.9,3092.8,0.75273]
[1763549991511,0.52667166,3092.9,3092.8,0.52423]
[1763549994417,1.27926034,3092.9,3092.8,0.52423]
[1763549995120,1.2792607,3092.9,3092.8,0.52423]
[1763549995718,0.52424,3092.8,3092.7,0.75274]
[1763549997422,0.00246166,3092.9,3092.8,0.75273]
[1763549998315,0.52667166,3092.9,3092.8,0.75273]
[1763549998917,0.00246166,3092.9,3092.8,0.75273]
[1763549999821,0.52667166,3092.9,3092.8,0.52423]
[1763550000022,0.52667166,3092.9,3092.8,0.75273]
[1763550000922,1.2793829,3092.9,3092.8,0.52423]
[1763550001123,0.52426,3092.7,3092.6,0.52426]
[1763550001524,0.52426,3092.6,3092.5,0.89048]
[1763550001720,0.00246166,3092.9,3092.8,0.74953]
[1763550001927,0.75545716,3092.9,3092.8,0.74953]
[1763550002818,1.27966716,3092.9,3092.8,0.74953]
[1763550003926,0.75545716,3092.9,3092.8,0.74953]
[1763550004226,1.27966716,3092.9,3092.8,0.74953]
[1763550005431,0.52426,3092.7,3092.6,0.2253]
[1763550006824,0.52423,3092.8,3092.7,0.52423]
[1763550007025,1.27759048,3092.8,3092.7,0.52423]
[1763550009435,1.27759048,3092.8,3092.7,0.74953]
[1763550009835,0.75336048,3092.8,3092.7,0.74953]
[1763550010136,1.27759048,3092.8,3092.7,0.74953]
[1763550011231,0.75336048,3092.8,3092.7,0.74953]
[1763550011439,1.15272829,3093.5,3092.7,6.10513286]
[1763550011731,3.2078,3093.8,3092.7,6.10513286]
[1763550011732,0.5241,3093.6,3093.5,0.3725]
[1763550012037,1.28073203,3093.6,3093.5,0.3725]
[1763550012428,1.28386727,3093.6,3093.5,0.37651763]
[1763550012630,1.28386727,3093.6,3093.5,0.15121763]
[1763550015438,0.52418,3093.1,3093.0,0.1472]
[1763550015632,3.73198,3093.1,3093.0,0.1472]
[1763550015938,4.48861203,3093.1,3093.0,0.1472]
[1763550016339,4.48861203,3093.1,3093.0,0.15051404]
[1763550016732,4.48861203,3093.1,3093.0,0.00331404]
[1763550019234,4.48861203,3093.1,3093.0,0.15051404]
[1763550019540,3.73198,3093.1,3093.0,0.15051404]
[1763550019742,4.48705947,3093.1,3093.0,0.15051404]
[1763550023843,5.63855529,3093.1,3093.0,0.00331404]
[1763550024043,0.52426,3092.6,3092.5,0.1377]
[1763550024347,4.48713947,3092.6,3092.5,0.3774]
[1763550025044,4.48713947,3092.6,3092.5,0.37980721]
[1763550030049,4.48713947,3092.6,3092.5,0.90408721]
[1763550032749,1.27933947,3092.6,3092.5,0.90408721]
[1763550032950,4.48713947,3092.6,3092.5,0.90408721]
[1763550033343,4.48713947,3092.6,3092.5,0.37980721]
[1763550033541,0.52435,3092.1,3092.0,0.14735029]
[1763550033846,3.73213,3092.2,3092.1,0.76575]
[1763550034750,3.73213,3092.2,3092.1,0.7694347]
[1763550035954,3.2078,3092.2,3092.1,0.7694347]
[1763550036450,3.2078,3092.2,3092.1,1.8955256]
[1763550040158,3.2078,3092.6,3092.5,0.90638]
[1763550041155,3.2078,3093.1,3093.0,0.90629]
[1763550046255,3.21093524,3093.6,3093.5,0.90621]
[1763550048464,3.2078,3094.0,3093.9,0.76544]
[1763550048654,3.73174,3094.5,3094.3,0.52396]
[1763550048851,0.52397,3094.3,3094.2,0.52398]
[1763550049258,0.52399,3094.2,3094.0,0.66471]
[1763550049659,0.52399,3094.2,3094.1,0.52401]
[1763550049660,0.52805934,3094.2,3094.1,0.52401]
[1763550050354,0.52805934,3094.2,3094.1,0.76541]
[1763550052867,0.52401,3094.1,3094.0,0.14452541]
[1763550053069,4.8579009,3094.1,3094.0,0.14452541]
[1763550054659,3.73181,3094.1,3094.0,0.14452541]
[1763550054857,3.2078,3094.1,3094.0,0.14452541]
[1763550055867,3.2078,3094.1,3093.8,0.00485029]
[1763550056070,3.2078,3094.1,3093.5,0.1407]
[1763550056071,1.1260909,3093.9,3093.5,0.1407]
[1763550056262,3.2078,3093.6,3093.5,0.1407]
[1763550056965,3.2078,3093.6,3093.5,0.14322831]
[1763550058365,3.2078,3093.6,3093.5,0.38462831]
[1763550058562,0.00485029,3093.9,3093.8,0.2414]
[1763550058868,0.00485029,3093.9,3093.5,0.14322831]
[1763550062770,0.00485029,3093.9,3093.8,0.2414]
[1763550062973,0.00485029,3093.9,3093.5,0.14322831]
[1763550065779,0.00485029,3093.9,3093.8,0.2432]
[1763550066575,0.00485029,3093.9,3093.5,0.14322831]
[1763550066877,3.2078,3093.6,3093.5,0.38642831]
[1763550067171,4.3338909,3093.6,3093.5,0.14322831]
[1763550067873,3.2078,3093.6,3093.5,0.38642831]
[1763550077498,3.2078,3093.6,3093.5,0.14322831]
[1763550078005,3.96122178,3093.6,3093.5,0.14322831]
[1763550079300,3.96122178,3093.6,3093.5,0.38642831]
[1763550080791,3.96122178,3093.6,3093.5,0.14322831]
[1763550081194,5.11837255,3093.6,3093.0,0.1407]
[1763550081401,3.2078,3093.1,3093.0,0.1407]
[1763550081696,3.96122178,3093.1,3093.0,0.1407]
[1763550081892,3.2078,3093.5,3093.3,0.2432]
[1763550082089,0.75310201,3093.4,3093.3,0.0031455]
[1763550082295,0.75310201,3093.4,3093.3,0.2463455]
[1763550082995,0.75310201,3093.4,3093.3,0.0031455]
[1763550084209,0.75310201,3093.4,3093.3,4.55e-05]
[1763550088103,0.75310201,3093.4,3093.3,0.2419455]
[1763550089098,0.75310201,3093.4,3093.3,4.55e-05]
[1763550090592,0.75310201,3093.4,3093.1,0.00485029]
[1763550090797,1.15170186,3093.2,3092.5,0.1407]
[1763550090998,3.2078,3092.6,3092.5,0.1407]
[1763550091600,3.2078,3092.6,3092.5,0.14466382]
[1763550093106,3.2078,3092.6,3092.5,0.38656382]
[1763550097703,3.2078,3092.6,3092.5,0.14466382]
[1763550098511,3.2078,3092.6,3092.5,0.38946382]
[1763550101116,3.2078,3092.6,3092.5,0.14466382]
[1763550105003,3.2078,3092.6,3092.5,0.38946382]
[1763550107614,3.2078,3092.6,3092.5,0.14466382]
[1763550110020,1.15715077,3093.2,3092.5,0.14466382]
[1763550110219,3.2078,3092.7,3092.5,0.14466382]
[1763550111615,0.75290931,3092.6,3092.5,0.14466382]
[1763550115328,0.75242693,3092.6,3092.5,0.14466382]
[1763550119531,0.75242693,3092.6,3092.5,0.00396382]
[1763550120132,0.75242693,3092.6,3092.5,0.14126382]
[1763550123330,0.75242693,3092.6,3092.5,0.38606382]
[1763550124027,0.75242693,3092.6,3092.5,0.14126382]
[1763550125428,0.75242693,3092.6,3092.5,0.37326382]
[1763550125631,3.2078,3093.1,3093.0,0.3665]
[1763550125825,3.9609076,3093.1,3093.0,0.3665]
[1763550127124,3.2078,3093.1,3093.0,0.3665]
[1763550135134,3.2078,3093.6,3093.5,0.1345]
[1763550135338,3.2078,3093.6,3093.5,0.3665]
[1763550137136,3.2078,3093.6,3093.5,0.1345]
[1763550138331,3.2078,3093.6,3093.0,0.1345]
[1763550138536,3.2078,3093.2,3093.0,0.1345]
[1763550140342,3.2078,3093.2,3093.1,0.232]
[1763550140939,3.2078,3093.6,3093.5,0.3665]
[1763550142141,3.2078,3093.6,3093.5,0.1345]
[1763550146538,3.2078,3093.6,3093.0,0.1345]
[1763550146744,3.2078,3093.6,3093.5,0.3787]
[1763550147851,0.00485029,3093.9,3093.8,0.2367]
[1763550149656,0.00485029,3093.9,3093.5,0.142]
[1763550150656,0.00485029,3093.9,3093.8,0.2367]
[1763550153652,0.00485029,3093.9,3093.5,1.26701487]
[1763550154156,0.00485029,3093.9,3093.8,0.2219]
[1763550154544,0.00485029,3093.9,3093.5,1.26701487]
[1763550154748,3.2078,3093.6,3093.5,0.142]
[1763550157952,3.95773803,3093.6,3093.5,0.142]
[1763550159260,3.95773803,3093.6,3093.0,0.1345]
[1763550159571,3.2078,3093.2,3093.0,0.1345]
[1763550161355,3.2078,3093.2,3093.1,0.2219]
[1763550161556,3.2078,3093.2,3093.1,1.34691487]
[1763550166965,3.2078,3093.6,3093.5,0.3639]
[1763550167167,3.95765381,3093.6,3093.5,0.3639]
[1763550169067,3.2078,3093.6,3093.5,0.3639]
[1763550169265,3.2078,3093.6,3093.5,0.142]
[1763550178371,3.95761904,3093.6,3093.5,0.142]
[1763550179173,3.95761904,3093.6,3093.0,0.1345]
[1763550179371,3.2078,3093.2,3093.0,0.1345]
[1763550182873,3.2078,3093.2,3093.1,0.2219]
[1763550185576,3.2078,3093.2,3093.0,0.1345]
[1763550186776,0.75005773,3093.1,3092.5,1.88708361]
[1763550186982,3.2078,3092.8,3092.5,0.14126382]
[1763550188674,3.2078,3092.8,3092.7,1.36151487]
[1763550189282,3.2078,3092.8,3092.5,0.14126382]
[1763550192187,1.87484935,3092.7,3092.5,0.00396382]
[1763550192483,1.12501487,3092.7,3092.5,0.00396382]
[1763550193089,1.12501487,3092.7,3092.5,0.14126382]
[1763550193284,3.2078,3092.8,3092.5,0.14126382]
[1763550195187,1.87435923,3092.7,3092.5,0.14126382]
[1763550195488,0.74924489,3092.6,3092.5,0.14126382]
[1763550195987,0.74924489,3092.6,3092.5,0.00396382]
[1763550196779,0.74924489,3092.6,3092.5,0.14126382]
[1763550199091,3.2336,3092.5,3090.9,3.2078]
[1763550199282,1.12501487,3091.0,3090.5,3.3451]
[1763550199481,1.72512765,3091.9,3090.5,3.3451]
[1763550199482,3.2078,3090.6,3090.5,0.1373]
[1763550200092,3.21042093,3090.6,3090.5,0.14102025]
[1763550200592,3.21042093,3090.6,3090.5,0.37752025]
[1763550204589,3.21042093,3090.6,3090.5,0.14102025]
[1763550205699,3.21042093,3090.6,3090.5,0.36732025]
[1763550207194,3.21042093,3090.6,3090.5,0.14102025]
[1763550208996,0.00262093,3090.6,3090.5,0.36732025]
[1763550209297,3.2078,3091.4,3091.3,0.2263]
[1763550210203,3.21190483,3091.4,3091.3,0.2263]
[1763550210496,3.21190483,3091.4,3091.0,0.1439]
[1763550212291,3.21190483,3091.4,3091.3,0.2263]
[1763550213496,0.00485029,3091.7,3091.6,0.2362]
[1763550214595,0.00741539,3091.7,3091.6,0.2362]
[1763550219001,0.00741539,3091.7,3091.5,0.145]
[1763550219304,0.00741539,3091.7,3091.0,0.1439]
[1763550219494,3.2078,3091.2,3091.1,0.2362]
[1763550219691,0.00741539,3091.7,3091.6,0.2362]
[1763550229598,3.2078,3092.2,3092.1,0.2362]
[1763550230406,3.2078,3093.4,3093.0,0.145]
[1763550230611,0.75591548,3093.3,3093.0,0.14886127]
[1763550230910,0.75591548,3093.2,3093.0,0.14886127]
[1763550231105,3.21126825,3093.4,3093.0,0.14886127]
[1763550231302,0.7556561,3093.3,3093.0,0.14886127]
[1763550231513,0.7556561,3093.2,3092.5,0.145]
[1763550231808,3.2078,3092.7,3092.5,0.145]
[1763550232401,3.2078,3092.7,3092.5,0.14919125]
[1763550232600,3.2078,3092.7,3092.5,0.00419125]
[1763550232806,3.2078,3092.7,3092.5,0.14919125]
[1763550237111,0.75666223,3092.6,3092.5,0.14919125]
[1763550239106,0.75666223,3092.6,3092.3,0.00485029]
[1763550239311,0.75666223,3092.5,3092.3,0.00485029]
[1763550239512,3.2078,3092.7,3092.5,0.145]
[1763550239817,0.75756962,3092.6,3092.5,0.145]
[1763550240017,0.75756962,3092.6,3092.5,0.14798598]
[1763550240221,0.75756962,3092.6,3092.5,0.00298598]
[1763550240411,3.2336,3092.5,3092.0,0.145]
[1763550240617,3.2078,3092.1,3092.0,0.145]
[1763550240818,3.96536962,3092.1,3092.0,0.145]
[1763550241517,3.96536962,3092.1,3092.0,0.14860793]
[1763550243216,0.75756962,3092.1,3092.0,0.38480793]
[1763550243418,3.2078,3092.5,3092.4,0.2257]
[1763550243614,3.96589096,3092.5,3092.4,0.2257]
[1763550244011,3.96589096,3092.5,3092.0,0.14860793]
[1763550244218,0.75809096,3092.4,3092.0,0.14860793]
[1763550244522,0.75809096,3092.3,3092.2,0.2257]
[1763550247917,3.2078,3092.5,3092.4,0.2257]
[1763550248226,3.96628729,3092.5,3092.4,0.2257]
[1763550252841,3.96628729,3092.5,3092.0,0.14860793]
[1763550253043,0.75848729,3092.4,3092.0,0.14860793]
[1763550254639,0.75848729,3092.4,3092.0,0.00360793]
[1763550254640,3.2078,3092.1,3092.0,0.00360793]
[1763550254841,6.26899363,3092.1,3091.5,0.145]
[1763550255048,3.2078,3091.6,3091.0,0.145]
[1763550255247,0.75848729,3091.5,3091.0,0.145]
[1763550255546,3.2078,3091.2,3091.0,0.145]
[1763550255743,0.75848729,3091.1,3091.0,0.00370432]
[1763550256950,0.75848729,3091.1,3091.0,0.14560432]
[1763550257146,0.00322781,3091.2,3091.1,0.2257]
[1763550270139,0.00322781,3091.2,3091.0,0.14560432]
[1763550273157,0.00322781,3091.2,3091.1,0.2287]
[1763550273955,0.00322781,3091.2,3091.0,0.14560432]
[1763550274960,0.75824039,3091.1,3091.0,0.14560432]
[1763550275259,0.00322781,3091.2,3091.0,0.14560432]
[1763550276548,0.75799469,3091.1,3091.0,0.14560432]
[1763550278263,0.00322781,3091.2,3091.1,0.224]
[1763550278766,0.76109197,3091.2,3091.1,0.224]
[1763550278954,0.76109197,3091.2,3091.0,0.14560432]
[1763550279156,0.7580133,3091.1,3091.0,0.14560432]
[1763550281958,0.7580133,3091.1,3091.0,0.36960432]
[1763550282766,0.7580133,3091.1,3091.0,0.14560432]
[1763550283068,1.88525495,3091.1,3091.0,0.00370432]
[1763550283366,2.86549028,3091.1,3091.0,0.1472]
[1763550283568,3.62350358,3091.1,3091.0,0.1472]
[1763550284061,1.88525495,3091.1,3091.0,0.1472]
[1763550284260,1.88525495,3091.1,3091.0,0.14963072]
[1763550284864,1.88525495,3091.1,3091.0,0.00243072]
[1763550285767,1.88525495,3091.1,3091.0,0.14963072]
[1763550286468,2.28630889,3091.1,3091.0,0.14963072]
[1763550286665,3.04432219,3091.1,3091.0,0.14963072]
[1763550287567,3.04432219,3091.1,3090.8,0.00485029]
[1763550287768,3.2078,3090.9,3090.8,0.00485029]
[1763550287967,3.9658133,3090.9,3090.8,0.00485029]
[1763550288768,3.9658133,3090.9,3090.8,0.00826688]
[1763550292273,3.9658133,3090.9,3090.8,0.23226688]
[1763550298978,3.9658133,3090.9,3090.8,0.00826688]
[1763550300581,3.9658133,3090.9,3090.5,0.145]
[1763550300771,1.12724165,3090.6,3090.5,0.145]
[1763550300964,1.88525495,3090.6,3090.5,0.145]
[1763550301366,1.12724165,3090.6,3090.0,0.1419]
[1763550301566,5.49443867,3090.1,3090.0,0.00658649]
[1763550301873,7.95939213,3090.1,3089.5,0.1438]
[1763550302178,1.12724165,3089.6,3089.5,0.1438]
[1763550302470,0.7580133,3089.6,3089.5,0.385]
[1763550302672,0.7580133,3089.6,3089.5,0.3890957]
[1763550303174,3.2078,3090.1,3090.0,0.385]
[1763550303371,3.9651063,3090.1,3090.0,0.1438]
[1763550303769,0.7573063,3090.1,3090.0,0.385]
[1763550304175,4.33504165,3090.5,3090.4,0.2412]
[1763550304375,3.96485905,3090.5,3090.4,0.2412]
[1763550304580,3.2078,3090.5,3090.4,0.2412]
[1763550304781,5.49731319,3091.2,3091.0,0.385]
[1763550305077,0.75689099,3091.1,3091.0,0.385]
[1763550305472,0.75689099,3091.1,3091.0,0.1438]
[1763550306272,0.75689099,3091.1,3091.0,0.385]
[1763550307873,0.75689099,3091.1,3091.0,0.1438]
[1763550309078,1.91593472,3091.1,3091.0,0.1438]
[1763550309277,1.91473109,3091.1,3090.5,0.1438]
[1763550309480,3.2078,3090.6,3090.5,0.385]
[1763550309678,3.96469099,3090.6,3090.5,0.385]
[1763550312685,3.96469099,3090.6,3090.5,0.1438]
[1763550313080,3.96469099,3090.6,3090.5,0.385]
[1763550313987,3.2078,3090.6,3090.5,0.385]
[1763550314183,3.2078,3091.0,3090.9,0.2412]
[1763550314487,3.96424987,3091.0,3090.9,0.2412]
[1763550317888,3.96424987,3091.0,3090.5,0.1438]
[1763550318088,0.75644987,3090.9,3090.5,0.385]
[1763550318292,0.75644987,3090.8,3090.5,0.1438]
[1763550318499,0.75565004,3090.7,3090.5,0.1438]
[1763550318788,0.75565004,3090.6,3090.5,0.1438]
[1763550319789,0.75565004,3090.6,3090.2,3.2078]
[1763550320092,0.75565004,3090.5,3090.2,3.2078]
[1763550320288,4.3656401,3091.0,3090.2,3.2078]
[1763550320492,0.75524561,3090.9,3090.2,3.449]
[1763550320692,0.75524561,3090.8,3090.2,3.449]
[1763550320888,0.75524561,3090.7,3090.2,3.449]
[1763550321196,0.75524561,3090.6,3090.5,0.1438]
[1763550322087,0.75524561,3090.6,3090.0,0.1438]
[1763550322088,3.96304561,3090.6,3090.0,0.1438]
[1763550322288,0.75524561,3090.5,3090.0,0.1438]
[1763550322486,0.75524561,3090.4,3090.0,0.385]
[1763550322689,3.2078,3090.6,3090.0,0.1438]
[1763550322899,0.75516653,3090.5,3090.0,0.385]
[1763550323191,0.75516653,3090.4,3090.0,0.385]
[1763550323383,0.75516653,3090.3,3090.2,0.2412]
[1763550323586,0.75516653,3090.5,3090.2,0.2412]
[1763550323990,0.75516653,3090.5,3090.4,0.2431]
[1763550324297,0.75516653,3090.5,3090.0,0.1438]
[1763550326596,0.75516653,3090.5,3090.0,0.3869]
[1763550328795,1.88300743,3090.5,3090.0,0.3869]
[1763550328996,0.75516653,3090.4,3090.0,0.3869]
[1763550329300,1.1278409,3090.5,3090.0,0.3869]
[1763550329504,0.75438001,3090.4,3090.0,0.3869]
[1763550329803,1.1278409,3090.5,3090.0,0.3869]
[1763550330102,0.75437754,3090.4,3090.0,0.3869]
[1763550330402,1.1278409,3090.5,3090.0,0.3869]
[1763550330604,0.7545851,3090.4,3090.0,0.3869]
[1763550330801,1.1278409,3090.5,3090.0,0.3869]
[1763550330990,0.75478977,3090.4,3090.0,0.3869]
[1763550331196,1.1278409,3090.5,3090.0,0.3869]
[1763550331396,0.7550145,3090.4,3090.0,0.3869]
[1763550331699,1.1278409,3090.5,3090.0,0.3869]
[1763550332004,0.75501705,3090.4,3090.0,0.3869]
[1763550332206,0.75545195,3090.3,3090.2,0.2431]
[1763550332404,3.2078,3090.6,3090.2,0.2431]
[1763550332595,3.2078,3090.6,3090.5,0.3785]
[1763550332905,3.96326212,3090.6,3090.5,0.3785]
[1763550335309,3.2078,3091.0,3090.9,0.2422]
[1763550335503,3.96390403,3091.0,3090.9,0.2422]
[1763550339811,3.96390403,3091.0,3090.6,3.45]
[1763550340011,0.75610403,3090.9,3090.6,3.45]
[1763550340203,0.75610403,3090.8,3090.6,3.2078]
[1763550340408,0.75558886,3090.7,3090.5,0.1363]
[1763550340716,3.2078,3091.0,3090.5,0.1363]
[1763550340717,0.75558903,3090.6,3090.5,0.1363]
[1763550341114,0.75558903,3090.6,3090.1,3.2078]
[1763550341311,0.75558903,3090.5,3090.1,3.2078]
[1763550341514,0.75558903,3090.4,3090.1,3.45]
[1763550341722,1.15315405,3090.8,3090.1,3.45]
[1763550341909,0.75554942,3090.7,3090.1,3.45]
[1763550342103,0.75554942,3090.6,3090.5,0.1363]
[1763550345414,0.75554942,3090.6,3090.5,0.3785]
[1763550345610,0.75554942,3090.6,3090.5,0.1363]
[1763550347919,0.75554942,3090.6,3090.5,0.3785]
[1763550348724,0.75554942,3090.6,3090.5,0.1363]
[1763550350925,0.75554942,3090.6,3090.0,0.1438]
[1763550350926,3.96334942,3090.6,3090.0,0.1438]
[1763550351129,4.36095405,3090.2,3089.5,0.1478957]
[1763550351325,0.75554942,3090.1,3089.5,0.1478957]
[1763550351524,0.75554942,3090.1,3089.5,0.3900957]
[1763550353723,0.75554942,3090.1,3090.0,0.1363]
[1763550354028,0.75554942,3090.1,3090.0,0.3785]
[1763550355828,3.2078,3090.2,3090.0,0.3785]
[1763550356130,0.75642003,3090.1,3090.0,0.3785]
[1763550356727,0.75642003,3090.1,3090.0,0.1363]
[1763550358628,0.75642003,3090.1,3090.0,0.3785]
[1763550358935,0.75642003,3090.1,3090.0,0.1363]
[1763550360629,0.75642003,3090.1,3089.5,0.1478957]
[1763550360834,0.75642003,3090.0,3089.5,0.3900957]
[1763550361033,0.75642003,3089.9,3089.5,0.3900957]
[1763550361225,0.75642003,3089.8,3089.7,0.2422]
[1763550362136,3.2078,3090.2,3090.0,0.1383]
[1763550362438,3.2078,3090.2,3090.1,0.2392]
[1763550362729,3.96388347,3090.2,3090.1,0.2392]